Cogmind - Beta 11 @@@ ROGUE MODE // 2022.04.11 @ 01:14:08 Player: Sudoku Result: Destroyed by D-53 Grenadier with Mini Grenade Launcher Performance ------------- Evolutions (0) 0 Regions Visited (4) 800 Robots Destroyed (13) 65 Value Destroyed (328) 328 Prototype IDs (2) 40 Alien Tech Used (0) 0 Bonus (0) 0 TOTAL SCORE: 1233 Bonus ------- None Cogmind --------- Core Integrity 0/250 Matter 300/300 Energy 100/100 System Corruption 3% Temperature Cool (0) Movement Walking (180) Ox1 Location -9/Mines Parts ------- > --- POWER (1) -------- (None) > --- PROPULSION (2) --- VSS Leg > --- UTILITY (2) ------ Improved Heat Sink Medium Storage Unit > --- WEAPON (2) ------- Small Laser Pulse Rifle > --- INVENTORY (10) --- Armored Wheel Armored Wheel Armored Wheel Armored Wheel Experimental Sensor Array Particle Charger EMP Blaster EMP Blaster EMP Blaster EMP Blaster Peak State ------------ > --- POWER ------------ Light Nuclear Core > --- PROPULSION ------- Aluminum Leg VSS Leg > --- UTILITY ---------- Improved Heat Sink Medium Storage Unit > --- WEAPON ----------- Pulse Rifle EMP Blaster > --- INVENTORY -------- Armored Wheel Armored Wheel Armored Wheel Armored Wheel Experimental Sensor Array Particle Charger Small Laser EMP Blaster EMP Blaster EMP Blaster [Rating: 18] Favorites ----------- Power Light Nuclear Core Engine Light Ion Engine Power Core Light Nuclear Core Propulsion Aluminum Leg Leg Aluminum Leg Utility Medium Storage Unit Device Improved Heat Sink Storage Medium Storage Unit Weapon Small Laser Energy Gun Small Laser Ballistic Gun Light Assault Rifle Launcher EMP Blaster Special Weapon Mining Laser Build | -11 -10 -10 -10 -9 ------- Run | Scr Mat Min Exi Min Slots Evolved . | . . . . . Power . | . . . . . Propulsion . | . . . . . Utility . | . . . . . Weapon . | . . . . . Parts Attached 28 | 6 9 13 . . Power 4 | 1 . 3 . . Engine 2 | 1 . 1 . . Core 2 | . . 2 . . Reactor . | . . . . . Propulsion 6 | 2 . 4 . . Treads . | . . . . . Leg 6 | 2 . 4 . . Wheel . | . . . . . Hover . | . . . . . Flight . | . . . . . Utility 4 | 1 2 1 . . Device 2 | . 1 1 . . Storage 2 | 1 1 . . . Processor . | . . . . . Hackware . | . . . . . Protection . | . . . . . Artifact . | . . . . . Weapon 14 | 2 7 5 . . Energy Gun 8 | 1 4 3 . . Energy Cannon . | . . . . . Ballistic Gun 1 | 1 . . . . Ballistic Cannon . | . . . . . Launcher 1 | . . 1 . . Special Weapon 4 | . 3 1 . . Impact Weapon . | . . . . . Slashing Weapon . | . . . . . Piercing Weapon . | . . . . . Special Melee Weapon . | . . . . . Unidentified Prototypes . | . . . . . Parts Lost 2 | . . . . 2 Power 1 | . . . . 1 Propulsion 1 | . . . . 1 Utility . | . . . . . Weapon . | . . . . . Highest Loss Streak 2 | . . . . 2 To Critical Strikes . | . . . . . Average Slot Usage (%) 99 | . 97 100 100 100 Engine 3 | . 14 . . . Core 10 | . . 13 14 14 Leg 28 | . 28 28 28 28 Device 13 | . 11 14 14 14 Storage 14 | . 14 14 14 14 Energy Gun 25 | . 20 26 28 28 Special Weapon 1 | . 4 . . . Naked Turns . | . . . . . Heaviest Build 23 | 10 15 23 20 20 Greatest Support 26 | 20 26 26 22 22 Greatest Overweight (x) 1 | 1 . 1 . 1 Average Overweight (x) . | . . . . . Largest Inventory Capacity 10 | 8 10 10 10 10 Average Capacity 9 | 6 8 10 10 10 Most Carried 10 | 8 10 10 10 10 Average Carried 9 | 4 8 9 10 10 Final Capacity 10 | 8 10 10 10 10 Final Carried 10 | 8 10 10 10 10 Class Distribution -------------------- 86% | Mutant 13% | Scavenger-Mutant Dominant Class ---------------- Mutant | -10/Materials Mutant | -10/Mines Mutant | -10/Exiles Mutant | -9/Mines Resources | -11 -10 -10 -10 -9 ----------- Run | Scr Mat Min Exi Min Matter Collected 564 | 242 52 234 . 36 Remotely . | . . . . . Salvage Created 499 | 15 144 340 . . Parts 30 | 3 10 17 . . Haulers Intercepted 2 | . 2 . . . Recyclers Shooed . | . . . . . Parts Field Recycled . | . . . . . Retrieved Matter . | . . . . . Parts Self-Destructed . | . . . . . Prevented . | . . . . . Kills | -11 -10 -10 -10 -9 ------- Run | Scr Mat Min Exi Min Combat Hostiles Destroyed 10 | . 1 9 . . Guns 7 | . 1 6 . . AOE 3 | . . 3 . . Classes Destroyed 4 | 1 2 1 . . Tunneler 1 | 1 . . . . Hauler 2 | . 2 . . . Swarmer 3 | . . 3 . . Grunt 7 | . 1 6 . . Best Kill Streak 3 | 1 2 3 . . Combat Bots Only 3 | . 1 3 . . Max Kills in Single Turn 2 | 1 1 2 . . Gunslinging . | . . . . . Exploded 2 | . . 2 . . Melee . | . . . . . Uniques/NPCs Destroyed . | . . . . . Combat | -11 -10 -10 -10 -9 -------- Run | Scr Mat Min Exi Min Damage Taken 802 | . 23 396 . 383 Core 268 | . . 87 . 181 Absorbed by Shields . | . . . . . Core Remaining (%) 100 | 100 . . . . Volleys Fired 46 | 1 23 22 . . Largest 2 | 2 2 2 . . Hottest 140 | 60 140 96 . . Shots Fired 92 | 2 46 44 . . Gun 79 | 2 37 40 . . Cannon . | . . . . . Launcher 4 | . . 4 . . Special 9 | . 9 . . . Kinetic 14 | 1 13 . . . Thermal 74 | 1 33 40 . . Explosive . | . . . . . Electromagnetic 4 | . . 4 . . Robot Hit Streak 6 | 1 5 6 . . Robot Miss Streak 4 | . 4 3 . . Penetration Max . | . . . . . Secondary Targets 2 | . . 2 . . Max Gunslinging Chain 1 | . . 1 . . Shots Hit Robots 46 | 1 15 30 . . Core Hits 28 | 1 8 19 . . Critical Kills . | . . . . . Critical Parts Destroyed . | . . . . . Critical Strikes . | . . . . . Melee Attacks . | . . . . . Impact . | . . . . . Slashing . | . . . . . Piercing . | . . . . . Sneak Attacks . | . . . . . Combat Hostiles . | . . . . . Follow-up Attacks . | . . . . . Damage Inflicted 578 | 12 166 400 . . Guns 493 | 12 166 315 . . Cannons . | . . . . . Explosions 85 | . . 85 . . Melee . | . . . . . Ramming . | . . . . . Kinetic 63 | . 63 . . . Thermal 430 | 12 103 315 . . Explosive . | . . . . . Electromagnetic 85 | . . 85 . . Impact . | . . . . . Slashing . | . . . . . Piercing . | . . . . . Highest Corruption 3 | . 3 3 3 3 Average Corruption 2 | . 2 3 3 3 Corruption Purged . | . . . . . Corruption Blocked . | . . . . . Effects 22 | . 1 9 5 7 Message Errors 3 | . . 2 1 . Matter Fused 7 | . 1 3 2 1 Heat Flow Errors 5 | . . 2 1 2 Energy Discharges 4 | . . 1 1 2 Data Loss (major) 3 | . . 1 . 2 Overload Shots . | . . . . . Overflow Damage 4 | . . 4 . . Projectiles . | . . . . . Explosions 4 | . . 4 . . Melee . | . . . . . Knockbacks . | . . . . . Impact . | . . . . . Kinetic . | . . . . . Secondary . | . . . . . Self-Inflicted Damage . | . . . . . Shots . | . . . . . Rammed . | . . . . . Targets Rammed . | . . . . . Kicked . | . . . . . Crushed . | . . . . . Highest Temperature 307 | 20 80 307 122 249 Average Temperature 80 | 15 22 134 64 111 Received Heat Transfer 198 | . 12 186 . . Siege Activations . | . . . . . Robots Corrupted . | . . . . . Combat Hostiles . | . . . . . Parts Fried 1 | . . 1 . . Impact Corruptions . | . . . . . Robots Melted . | . . . . . Combat Hostiles . | . . . . . Parts Melted 3 | . . 3 . . Heat Transferred 962 | 25 225 712 . . Parts Sabotaged . | . . . . . Parts Stolen . | . . . . . Parts Stripped . | . . . . . Power Chain Reactions . | . . . . . Missiles Intercepted . | . . . . . Alert | -11 -10 -10 -10 -9 ------- Run | Scr Mat Min Exi Min Peak Influence 180 | 5 144 180 . . Initial 3 | . 3 . . . Average 68 | . 81 110 . . Maximum Alert Level . | . . . . . Low Security (%) 100 | 100 100 100 . 100 Level 1 . | . . . . . Level 2 . | . . . . . Level 3 . | . . . . . Level 4 . | . . . . . Level 5 . | . . . . . High Security . | . . . . . Max Security . | . . . . . Squads Dispatched . | . . . . . Investigation . | . . . . . Extermination . | . . . . . Reinforcement . | . . . . . Assault . | . . . . . Garrison . | . . . . . Intercept . | . . . . . Searches Triggered . | . . . . . Construction Impeded . | . . . . . Haulers Reinforced . | . . . . . Active Scanning Responses . | . . . . . Cargo Convoy Interrupts . | . . . . . Stealth | -11 -10 -10 -10 -9 --------- Run | Scr Mat Min Exi Min Distress Signals 1 | . . . . 1 Communications Jammed . | . . . . . Distress Signals . | . . . . . Times Spotted 22 | . 5 11 . 6 Peak Tracking Total 6 | . 3 3 . 6 Tactical Retreats 3 | . . 1 . 2 Traps | -11 -10 -10 -10 -9 ------- Run | Scr Mat Min Exi Min Traps Triggered 2 | . 2 . . . Indirectly . | . . . . . Trap Hack Attempts . | . . . . . Triggered . | . . . . . Disarmed . | . . . . . Reprogrammed . | . . . . . Reused . | . . . . . Traps Extracted . | . . . . . Installed . | . . . . . Triggered . | . . . . . Machines | -11 -10 -10 -10 -9 ---------- Run | Scr Mat Min Exi Min Machines Disabled 1 | . 1 . . . Max in Single Turn 1 | . 1 . . . Machines Sabotaged . | . . . . . Garrisons Compromised . | . . . . . Overloaded Fab Kills . | . . . . . Hacking | -11 -10 -10 -10 -9 --------- Run | Scr Mat Min Exi Min Machines Accessed 5 | . 3 1 1 . Terminals 3 | . 3 . . . Fabricators . | . . . . . Repair Stations . | . . . . . Recycling Units . | . . . . . Scanalyzers . | . . . . . Garrison Access . | . . . . . Total Hacks 37 | . 13 1 23 . Successful 31 | . 7 1 23 . Failed 6 | . 6 . . . Catastrophic . | . . . . . Database Lockouts . | . . . . . Manual 13 | . 11 . 2 . Terminals 13 | . 13 . . . Fabricators . | . . . . . Repair Stations . | . . . . . Recycling Units . | . . . . . Scanalyzers . | . . . . . Garrison Access . | . . . . . Terminal Hacks 28 | . 4 1 23 . Record 23 | . . . 23 . Prototype ID Bank 1 | . 1 . . . Open Door 1 | . . 1 . . Terminal Index 1 | . 1 . . . Locate Traps 1 | . 1 . . . Zone Layout 1 | . 1 . . . Fabricator Hacks . | . . . . . Repair Station Hacks . | . . . . . Recycling Unit Hacks . | . . . . . Scanalyzer . | . . . . . Garrison Access Hacks . | . . . . . Unauthorized Hacks 3 | . 3 . . . Terminals 3 | . 3 . . . Track 2 | . 2 . . . Botnet 1 | . 1 . . . Fabricators . | . . . . . Repair Stations . | . . . . . Recycling Units . | . . . . . Scanalyzers . | . . . . . Garrison Access . | . . . . . Data Cores Recovered . | . . . . . Used . | . . . . . Hacking Detections 3 | . 3 . . . Full Trace Events . | . . . . . Feedback Events . | . . . . . Feedback Blocked . | . . . . . Robot Schematics Acquired . | . . . . . Robots Built . | . . . . . Authchips . | . . . . . Time . | . . . . . Total Robot Build Rating . | . . . . . Part Schematics Acquired . | . . . . . Parts Built . | . . . . . Authchips . | . . . . . Time . | . . . . . Total Part Build Rating . | . . . . . Parts Repaired . | . . . . . Time . | . . . . . Parts Recycled . | . . . . . Recycled Matter . | . . . . . Retrieved Matter . | . . . . . Retrieved Components . | . . . . . Parts Scanalyzed . | . . . . . Part Schematics Acquired . | . . . . . Parts Damaged . | . . . . . Bothacking | -11 -10 -10 -10 -9 ------------ Run | Scr Mat Min Exi Min Used RIF Installer . | . . . . . Robots Hacked . | . . . . . Non-combat . | . . . . . Combat . | . . . . . Robot Hacks Applied . | . . . . . Relay Couplers Released . | . . . . . Fabnet Peak Effective % . | . . . . . Robots Rewired 1 | . . . 1 . Allies Hacked . | . . . . . Hacks Repelled . | . . . . . Allies | -11 -10 -10 -10 -9 -------- Run | Scr Mat Min Exi Min Total Allies 2 | . . . 1 1 Largest Group 2 | . . . 1 2 Highest-Rated Group 52 | . . . 21 52 Highest-Rated Ally 31 | . . . 21 31 Total Orders . | . . . . . Ally Attacks 7 | . . . . 7 Total Damage 97 | . . . . 97 Kills 2 | . . . . 2 Allies Corrupted . | . . . . . Allies Melted . | . . . . . Intel | -11 -10 -10 -10 -9 ------- Run | Scr Mat Min Exi Min Robot Analysis Total . | . . . . . Derelict Logs Recovered 1 | . . . . 1 Drone Launches . | . . . . . Drone Recoveries . | . . . . . Exploration | -11 -10 -10 -10 -9 ------------- Run | Scr Mat Min Exi Min Turns Passed 1596 | 83 414 504 289 306 Spaces Moved 1163 | 58 224 325 270 286 Core 13 | 13 . . . . Treads . | . . . . . Legs 1150 | 45 224 325 270 286 Wheels . | . . . . . Hover . | . . . . . Flight . | . . . . . Fastest Speed 50 | 50 120 105 105 105 Average Speed 113 | 106 120 123 105 106 Slowest Speed 185 | 120 120 185 105 180 Overloaded Moves . | . . . . . Propulsion Burnouts . | . . . . . Robots Hopped . | . . . . . Cave-ins Triggered . | . . . . . Exploration Rate (%) 52 | 5 44 77 59 76 Regions Visited 4 Branch Regions 3 Pre-discovered Areas 2 | . . . 1 1 Known Exits Taken . | . . . . . Unknown Exits Taken 4 | 1 1 1 1 . Scrap Searched 4 | . . 2 . 2 Spaces Dug 7 | . 7 . . . Terrain Destroyed 8 | . 8 . . . Melee . | . . . . . Projectile 8 | . 8 . . . AOE . | . . . . . Terrain Rammed . | . . . . . Walls Destroyed . | . . . . . Machines Disabled . | . . . . . Actions | -11 -10 -10 -10 -9 --------- Run | Scr Mat Min Exi Min Total 1332 | 74 310 384 275 289 Wait 51 | 2 33 12 1 3 Move 1159 | 57 223 324 269 286 Hop . | . . . . . Pick Up 21 | 8 11 2 . . Fast Attach 12 | 6 2 4 . . Attach . | . . . . . Detach . | . . . . . Swap 16 | . 7 9 . . Drop 22 | . 11 11 . . Fire 46 | 1 23 22 . . Melee . | . . . . . Ram . | . . . . . Kick . | . . . . . Crush . | . . . . . Escape Stasis . | . . . . . Rewire 5 | . . . 5 . Trap . | . . . . . Miscellaneous . | . . . . . Route ------- -11/Scrapyard -10/Materials (discovered 2 exits: [*Mat] / *Min) -10/Mines (discovered 2 exits: [*Mat] / *Exi) -10/Exiles -9/Mines History --------- Turn | Location | Event 27 | -11/Scrapyard | Discovered new exit (range 16) 84 | -11/Scrapyard | Entered Materials 153 | -10/Materials | Discovered new exit (range 15) 307 | -10/Materials | Build established: Mutant 492 | -10/Materials | Discovered new exit (range 6) 498 | -10/Materials | Entered Mines 540 | -10/Mines | Found a damaged Exp. Sensor Array with a note attached 543 | -10/Mines | Found Prototype Device 783 | -10/Mines | Discovered new exit (range 5) 912 | -10/Mines | Met a Derelict who couldn't figure out how to use a Trap Extractor 998 | -10/Mines | Deemed a non-threat by the Exiles lab entrance 998 | -10/Mines | Discovered new exit (range 5) 1002 | -10/Mines | Entered Exiles 1002 | -10/Exiles | Found Exiles lab destroyed 1169 | -10/Exiles | Learned location of Zion (-7) 1200 | -10/Exiles | Discovered new exit (range 14) 1291 | -10/Exiles | Entered Mines 1291 | -9/Mines | Accompanied by 1 ally 1294 | -9/Mines | Received a Mining Laser from a helpful Derelict 1308 | -9/Mines | Found a hidden stash of uninstalled traps 1373 | -9/Mines | Assembled infested the area 1378 | -9/Mines | Assisted by a Guerilla fighting off Assembled 1587 | -9/Mines | Core integrity fell below 50% 1596 | -9/Mines | Core integrity fell below 20% 1597 | -9/Mines | Destroyed by D-53 Grenadier with Mini Grenade Launcher Last Messages --------------- 01462_ Searching scrap... 01462_ Found Hcp. Matter Pod. 01462_ Found Imp. Ion Engine. 01462_ Found Hcp. Storage Unit. 01462_ Found Field Recycling Unit. 01462_ Found 37 Matter. 01463_ Acquired 31 matter. 01469_ System corrupted: Matter fused (-5). 01500_ U-05 Engineer lays Concrete. 01505_ System corrupted: Heat flow error (+281). 01567_ Searching scrap... 01567_ Found Visual Processing Unit. 01567_ Found 25 Matter. 01568_ Acquired 5 matter. 01587_ The unstable cave ceiling collapses. 01587_ U-05 Engineer builds a Wall. 01591_ Aluminum Leg destroyed. 01593_ T-07 Excavator destroyed. 01594_ The unstable cave ceiling collapses. 01595_ Lgt. Nuclear Core destroyed. Map ----- +----------------------------------------------------+ | ??????????# #### #####??????????????? | | ??????????###### ##??# #??????????????????? | | ????###????????# ##???# #??????????????????? | | ?#### #???????# ## ##????# #??????????????????? | | ## ???????# #### #????? ##?????????????????? | | # ####???# #??# ??? #?????????????????? | | # ##### #??#####?? #?????????????????? | | #????????? ! #?????????????????? | | ## #######????????# %* #??#??????????????? | | ????????# #?????????????# ## #?#????????????? | | ????????# #######???????% ### #????????????? | | ????????#% #??????# ?????????????? | | ????????# ! ######## %%???????????????? | | ????????######## ## # #?????????????????? | | ???????????????# # #?????# ############ | | ???????????????#### # d #?????#% % % | | ??????????????????## d##?????############## | | ???????????????????## < #??????????????????# | | ???????????????????## ##?????????????????? | | ???????????????????# # ## #?????????????????? | | ????????????????????# #?????????????????? | | ???????????????????## #?????????????????? | | ???????????????????# ###?????????????????? | | ???????????????????# ##??????????????????? | | ???????????????????# #??????????????????? | | ???????????????????# @ ##??????????????????? | | ????????????? #???????????????????? | | ?????????? ##### #???????????????????? | | ??????????? ???????### ####???????????????????? | | ???????????????????????## ??????????????????????? | | ????????????????????????###??????????????????????? | | ?????????????????????????????????????????????????? | | ?????????????????????????????????????????????????? | | ?????????????????????????????????????????????????? | | ?????????????????????????????????????????????????? | | ?????????????????????????????????????????????????? | | ?????????????????????????????????????????????????? | | ?????????????????????????????????????????????????? | | ?????????????????????????????????????????????????? | | ?????????????????????????????????????????????????? | | ?????????????????????????????????????????????????? | | ?????????????????????????????????????????????????? | | ?????????????????????????????????????????????????? | | ?????????????????????????????????????????????????? | | ?????????????????????????????????????????????????? | | ?????????????????????????????????????????????????? | | ?????????????????????????????????????????????????? | | ?????????????????????????????????????????????????? | | | | | +----------------------------------------------------+ Best States ------------- Heat Dissipation 39 Energy Generation 14 Energy Capacity 160 Matter Stores 300 Matter Capacity 300 Sight Range 16 Terrain Scan Density 10 Additional Mass Support 6 Evasion (%) 55 Item Schematics ----------------- None Robot Schematics ------------------ None Fabricated ------------ Nothing Alien Tech Used ----------------- None Achievements -------------- None Challenges ------------ None Game ------ Seed MediumIntegratedDevice Manual? 0 Play Time 00:34:07 Cumulative 112.0 hours Start 2022.04.11 @ 00:40:03 End 2022.04.11 @ 01:14:08 Sessions 1 Manual Loads 0 Difficulty Rogue Special Mode None Game No. 84 Rogue 84 Adventurer 0 Explorer 0 Win Type - Total 0 Types 0/0/0/0/0/0/0/0/0 Lore% 29 Gallery% 43 Achievement% 37 Wizard Run 0 Options --------- ASCII 0 Keyboard 1 Movement Numpad Keybinds 0 Fullscreen 1 Font 36/Smallcaps Map View 76x50 Tactical HUD 1 Map Filters NONE Filters NONE Steam 1 RUN: d76e0864-048b-494e-9663-918407b15989